[Event "45th FIDE Olympiad 2024"]
[Site "Budapest"]
[Date "2024.09.19"]
[Round "8.58"]
[White "Veer, Gandhi"]
[Black "Espirito Santo, Waldyr"]
[Result "1-0"]
[WhiteElo "1792"]
[BlackElo "1926"]
[PlyCount "89"]
[EventDate "2024.09.05"]
[EventType "team-tourn"]
[EventCountry "HUN"]
[WhiteTeam "Tanzania"]
[BlackTeam "Sao Tome and Principe"]
[WhiteTeamCountry "TAN"]
[BlackTeamCountry "SAO"]
[TimeControl "40/5400+30:1800+30"]

1. d4 Nf6 2. Nc3 d5 3. Bf4 e6 4. Nb5 Bb4+ 5. c3 Ba5 6. a4 a6 7. b4 axb5 8. axb5 Nh5 9. Bd2 O-O 10. e3 Nf6 11. Rxa5 Rxa5 12. bxa5 c6 13. b6 Re8 14. Nf3 Ne4 15. Qc2 Qe7 16. Bc1 f6 17. Bd3 f5 18. O-O Nd7 19. c4 g5 20. Bxe4 fxe4 21. Nd2 g4 22. Bb2 h5 23. Ra1 Qg5 24. Ba3 e5 25. cxd5 cxd5 26. Bb2 h4 27. Nf1 Qf5 28. dxe5 Nxe5 29. Bxe5 Qxe5 30. Rd1 Rf8 31. Qd2 Be6 32. Rc1 Rf7 33. Rd1 Qf5 34. Qe2 Qe5 35. Rd4 Rg7 36. a6 bxa6 37. Qxa6 Qb8 38. b7 Re7 39. Rb4 Re8 40. Rb6 Kf7 41. Qb5 Re7 42. g3 h3 43. Qc6 Re8 44. Nd2 Qe5 45. Qxe8+ 1-0

[Event "45th FIDE Olympiad 2024"]
[Site "Budapest"]
[Date "2024.09.19"]
[Round "8.59"]
[White "Djukic, Nikola"]
[Black "Erdogmus, Yagiz Kaan"]
[Result "0-1"]
[ECO "C55"]
[WhiteElo "2515"]
[BlackElo "2592"]
[Annotator "TA"]
[PlyCount "88"]
[EventDate "2024.09.05"]
[EventType "team-tourn"]
[EventCountry "HUN"]
[SourceTitle "playchess.com"]
[Source "ChessBase"]
[SourceQuality "1"]
[WhiteTeam "Montenegro"]
[BlackTeam "Turkiye"]
[WhiteTeamCountry "MNE"]
[TimeControl "40/5400+30:1800+30"]

{[%evp 18,88,12,0,17,0,22,9,76,76,77,73,134,80,116,103,102,79,61,43,83,51,46,30,45,19,29,8,4,-29,-26,-52,-39,-66,-64,-56,-49,-57,-50,-87,-85,-112,-18,-41,-13,-25,0,-2,-3,0,-9,-8,-9,-133,-119,-212,-183,-170,-131,-175,-184,-172,-174,-179,-170,-250,-243,-272,-281,-270,-264,-538,-541]} 1. e4 {[%emt 0:00:03]} e5 {[%emt 0:00:05]} 2. Nf3 {[%emt 0:00:08]} Nc6 {[%emt 0:00:04]} 3. Bb5 {[%emt 0:00:08]} a6 {[%emt 0:00:04]} 4. Ba4 {[%emt 0:00:06]} Nf6 {[%emt 0:00:04]} 5. O-O {[%emt 0:00:10]} Be7 {[%emt 0:00:14]} 6. d3 {[%emt 0:00:30]} b5 {[%emt 0:00:08]} 7. Bb3 {[%emt 0:00:07]} d6 {[%emt 0:00:10]} 8. c3 {[%emt 0:00:31]} O-O {[%emt 0:00:26]} 9. h3 {[%emt 0:00:33]} Na5 {[%emt 0:05:55] 9...Bb7 is the modern continuation.} 10. Bc2 {[%emt 0:00:17]} c5 {[%emt 0:00:04] C55: Two Knights: 4 d3, 4 d4 exd4 5 e5 and Max Lange Attack.} 11. d4 {[%emt 0:00:50]} Qc7 {[%emt 0:14:47]} 12. d5 {[%emt 0:00:51]} c4 {[%emt 0:05:07]} (12... Nd7 $11) 13. b4 $16 {[%emt 0:03:16]} Nb7 {[%emt 0:10:45]} 14. a4 {[%emt 0:01:11]} bxa4 {[%emt 0:00:48]} (14... Bd7 $142) 15. Re1 $146 {[%emt 0:16:32]} (15. Na3 $142) ({Predecessor:} 15. Na3 Bd7 16. Bxa4 Bxa4 17. Qxa4 Nxe4 18. Qc2 f5 19. Be3 Nd8 20. b5 Qb7 21. bxa6 Rxa6 22. Nxc4 Rxa1 23. Rxa1 Qxd5 {1-0 Rojas,F (1588)-Obrien,G (1630) LSS No Engine Cup 177 Preliminary 0 2018}) 15... a5 {[%emt 0:03:57]} 16. Bxa4 {[%emt 0:00:24]} (16. Rxa4 Bd7 $14) 16... Bd7 {[%emt 0:20:52]} 17. Bd2 {[%emt 0:13:55]} Rfc8 {[%emt 0:04:57]} 18. Qc2 {[%emt 0:06:01]} Bd8 {[%emt 0:03:08]} 19. Ra3 {[%emt 0:03:36]} Bxa4 {[%emt 0:02:18]} 20. Rxa4 {[%emt 0:00:18]} Qd7 {[%emt 0:02:55]} 21. Qa2 {[%emt 0:08:09]} h6 {[%emt 0:01:26]} 22. Bc1 {[%emt 0:08:28]} Qb5 {[%emt 0:09:14]} 23. g3 {[%emt 0:09:24]} Nd7 {[%emt 0:04:49]} 24. Be3 {[%emt 0:11:12]} Bb6 {[%emt 0:02:29]} 25. Ra3 {[%emt 0:03:34]} Bxe3 {[%emt 0:02:35]} 26. Rxe3 {[%emt 0:00:30]} Nb6 {[%emt 0:00:19]} 27. bxa5 {[%emt 0:01:38]} Rxa5 {[%emt 0:01:03]} 28. Rxa5 {[%emt 0:02:46]} Nxa5 {[%emt 0:00:03]} (28... Qxa5 $6 29. Qxa5 Nxa5 30. Re2 $11) 29. Nbd2 {[%emt 0:02:07] [#]} Nb3 {[%emt 0:01:02]} ({Black should play} 29... Ra8 $1 $17 {White must now prevent ...Nb3.} 30. Kg2 Nb3) 30. Qa3 {[%emt 0:00:18]} Nc5 {[%emt 0:00:25]} 31. Qa7 $1 {[%emt 0:01:34]} Nba4 {[%emt 0:04:15] Threatens to win with ...Nd3.} 32. Qe7 {[%emt 0:02:25]} Qd7 {[%emt 0:00:23]} 33. Qxd7 {[%emt 0:00:26]} Nxd7 {[%emt 0:00:01]} 34. Ne1 {[%emt 0:00:09]} f5 {[%emt 0:00:44] With the idea ...Nf6.} 35. exf5 {[%emt 0:03:10]} (35. Ng2 $1 $11 {keeps the balance.}) 35... Nf6 $17 {[%emt 0:00:15]} 36. Nc2 {[%emt 0:00:09]} (36. Rf3 $17) 36... Nxd5 $19 {[%emt 0:00:28]} 37. Re4 {[%emt 0:00:04]} Nab6 {[%emt 0:00:55]} (37... Ndxc3 $6 38. Rxc4 Nb6 39. Rxc8+ Nxc8 40. Ne3 $15) 38. Nb1 {[%emt 0:00:39]} Ra8 {[%emt 0:00:45]} 39. Re2 {[%emt 0:01:43]} Ra2 {[%emt 0:00:40]} 40. Rd2 {[%emt 0:01:16]} Rb2 {[%emt 0:00:54]} 41. Nba3 {[%emt 0:08:13]} (41. Nca3 {was worth a try.} Rb3 42. Kh2) 41... Kf7 $19 {[%emt 0:03:06][%cal Of7e7]} (41... Nxc3 42. Rxd6 Ne4 43. Re6 $11) (41... Rb3 42. Kf1 (42. Nxc4 $2 Rb1+ 43. Kg2 Nxc4 $19)) 42. f4 {[%emt 0:08:27]} exf4 {[%emt 0:06:59]} ({Resist} 42... Nxc3 43. Rxd6 exf4 44. gxf4 $17) 43. gxf4 {[%emt 0:00:06]} Rb3 {[%emt 0:01:22]} ({Don't play} 43... Nxf4 44. Rxd6 Ne2+ (44... Nxh3+ 45. Kf1 $17) 45. Kf1 Nxc3 46. Rc6 $19) 44. Kf2 $2 {[%emt 0:03:39]} (44. h4) 44... Nxc3 {[%emt 0:00:30]} 0-1

[Event "45th FIDE Olympiad 2024"]
[Site "Budapest"]
[Date "2024.09.19"]
[Round "8.59"]
[White "Nascimento, Admilton De Ceita Do"]
[Black "Lusako, Shedrack"]
[Result "1/2-1/2"]
[WhiteElo "1908"]
[BlackElo "1760"]
[PlyCount "201"]
[EventDate "2024.09.05"]
[EventType "team-tourn"]
[EventCountry "HUN"]
[WhiteTeam "Sao Tome and Principe"]
[BlackTeam "Tanzania"]
[WhiteTeamCountry "SAO"]
[BlackTeamCountry "TAN"]
[TimeControl "40/5400+30:1800+30"]

1. d4 d5 2. c4 e6 3. e3 Nf6 4. Nc3 c5 5. dxc5 Bxc5 6. cxd5 exd5 7. Nf3 Bf5 8. Qb3 Qb6 9. Nxd5 Qxb3 10. Nxf6+ gxf6 11. axb3 Bb4+ 12. Bd2 Bxd2+ 13. Nxd2 Nc6 14. Bb5 Bd7 15. Ne4 Ke7 16. Nc5 Nb4 17. Nxd7 Nc2+ 18. Ke2 Nxa1 19. Rxa1 a6 20. Nb6 Rad8 21. Bc4 Rd6 22. Nd5+ Kf8 23. Nf4 b5 24. Bd3 Kg7 25. Rc1 Rhd8 26. Rc5 Re8 27. Rf5 Re5 28. Nh5+ Kf8 29. Rxf6 Rxd3 30. Kxd3 Rxh5 31. h3 Rd5+ 32. Kc3 Rc5+ 33. Kb4 Rc2 34. Ka5 Rxb2 35. b4 Ra2+ 36. Kb6 Ke7 37. Rf4 Ke6 38. g4 f6 39. Re4+ Kf7 40. f4 h6 41. h4 Ra4 42. Rd4 Ra3 43. e4 Rc3 44. g5 fxg5 45. fxg5 hxg5 46. hxg5 Rc4 47. g6+ Kxg6 48. Rd6+ Kf7 49. Ka5 Rxe4 50. Rxa6 Ke8 51. Kxb5 Kd7 52. Rh6 Kc7 53. Rh7+ Kb8 54. Ka5 Re6 55. b5 Rd6 56. Rh5 Ka7 57. Rc5 Kb7 58. Re5 Rd7 59. Re6 Rf7 60. Rd6 Re7 61. Rb6+ Ka7 62. Rf6 Kb7 63. Rf5 Rg7 64. Kb4 Rc7 65. Re5 Kb6 66. Re2 Rf7 67. Re4 Rc7 68. Re8 Kb7 69. Ka5 Rf7 70. Re5 Rg7 71. Rd5 Re7 72. Rd6 Rf7 73. Rb6+ Ka7 74. Re6 Kb7 75. Kb4 Rf4+ 76. Kc5 Rf5+ 77. Kb4 Rf4+ 78. Ka5 Rf7 79. Rd6 Rg7 80. Kb4 Rg4+ 81. Kc5 Rg5+ 82. Kb4 Rg4+ 83. Ka5 Rg7 84. Rf6 Re7 85. Kb4 Re4+ 86. Kc5 Re5+ 87. Kc4 Re7 88. Kd5 Rd7+ 89. Kc5 Rc7+ 90. Rc6 Rxc6+ 91. bxc6+ Kc7 92. Kb5 Kc8 93. Kc4 Kc7 94. Kd5 Kc8 95. Kd4 Kc7 96. Kd5 Kc8 97. Kd4 Kc7 98. Kc5 Kc8 99. Kb6 Kb8 100. c7+ Kc8 101. Kc6 1/2-1/2

[Event "45th FIDE Olympiad 2024"]
[Site "Budapest"]
[Date "2024.09.19"]
[Round "8.60"]
[White "Can, Emre"]
[Black "Draskovic, Luka"]
[Result "1/2-1/2"]
[ECO "C41"]
[WhiteElo "2547"]
[BlackElo "2497"]
[Annotator "TA"]
[PlyCount "149"]
[EventDate "2024.09.05"]
[EventType "team-tourn"]
[EventCountry "HUN"]
[SourceTitle "playchess.com"]
[Source "ChessBase"]
[SourceQuality "1"]
[WhiteTeam "Turkiye"]
[BlackTeam "Montenegro"]
[BlackTeamCountry "MNE"]
[TimeControl "40/5400+30:1800+30"]

{[%evp 80,146,56,48,62,48,48,48,98,63,85,48,48,32,46,83,41,8,9,8,166,183,325,414,415,418,377,363,1175,472,465,472,292,108,108,77,77,77,77,77,77,0,0,0,0,0,0,0,0,0,0,0,0,0,0,0,0,0,0,0,0,0,0,0,0,0,0,0,0]} 1. e4 {[%emt 0:00:04]} d6 {[%emt 0:00:09]} 2. d4 {[%emt 0:00:25]} Nf6 {[%emt 0:00:06]} 3. Nc3 {[%emt 0:00:22]} e5 {[%emt 0:00:07]} 4. Nf3 {[%emt 0:00:14]} Nbd7 {[%emt 0:00:25]} 5. Rg1 {[%emt 0:00:22]} c6 {[%emt 0:01:17]} 6. g4 {[%emt 0:01:11] C41: Philidor Defence.} h6 {[%emt 0:00:21]} 7. Be3 {[%emt 0:00:42]} Be7 {[%emt 0:00:23]} 8. a3 {[%emt 0:00:20]} Nf8 {[%emt 0:31:41]} 9. h3 {[%emt 0:00:19]} Ng6 {[%emt 0:00:05]} 10. Qd2 $146 {[%emt 0:04:53]} ({Predecessor:} 10. g5 hxg5 11. Nxg5 d5 12. dxe5 Nxe4 13. Ncxe4 dxe4 14. Qxd8+ Bxd8 15. Nxf7 Kxf7 16. Bc4+ {1-0 Kantor,G (2525)-Narciso Dublan,M (2400) Barcelona Sants op 25th 2024 (7)}) 10... Nh7 {[%emt 0:08:33]} 11. O-O-O {[%emt 0:06:24]} Ng5 {[%emt 0:01:38]} 12. Qe2 {[%emt 0:00:20]} Qc7 {[%emt 0:13:37]} 13. Kb1 {[%emt 0:03:18]} Nxf3 {[%emt 0:03:32]} 14. Qxf3 {[%emt 0:00:09]} Bg5 {[%emt 0:00:14]} 15. Bc4 {[%emt 0:02:47]} b5 {[%emt 0:09:44]} 16. Bb3 {[%emt 0:05:01]} Nh4 {[%emt 0:06:54]} 17. Qg3 {[%emt 0:10:45]} Ng6 {[%emt 0:00:35]} 18. Ne2 {[%emt 0:22:51]} Bb7 {[%emt 0:04:36]} 19. f4 {[%emt 0:01:45]} exf4 {[%emt 0:00:03]} 20. Nxf4 {[%emt 0:00:15]} Nxf4 {[%emt 0:00:28]} 21. Bxf4 {[%emt 0:00:06]} O-O-O {[%emt 0:00:03]} 22. h4 {[%emt 0:01:29]} Bxf4 {[%emt 0:00:27]} 23. Qxf4 {[%emt 0:00:03]} Rd7 {[%emt 0:02:10]} 24. Rgf1 {[%emt 0:09:35]} Kb8 {[%emt 0:00:53]} 25. g5 {[%emt 0:00:22]} hxg5 {[%emt 0:02:12]} 26. hxg5 {[%emt 0:00:06]} d5 {[%emt 0:01:25]} 27. e5 {[%emt 0:02:56]} g6 {[%emt 0:00:59]} 28. Qf6 {[%emt 0:06:21]} Re8 {[%emt 0:00:06]} 29. c3 {[%emt 0:00:18]} Rde7 {[%emt 0:00:54]} 30. Bc2 {[%emt 0:01:29]} Bc8 {[%emt 0:00:06]} 31. Rh1 {[%emt 0:01:00]} Be6 {[%emt 0:00:51]} 32. Rh7 {[%emt 0:01:48]} c5 {[%emt 0:01:39]} 33. dxc5 {[%emt 0:01:52]} Qxc5 {[%emt 0:00:55]} 34. Rd4 {[%emt 0:00:27]} Rb7 {[%emt 0:00:56]} 35. Rh8 {[%emt 0:06:15]} Rxh8 {[%emt 0:02:25]} 36. Qxh8+ {[%emt 0:00:03]} Kc7 {[%emt 0:00:51]} 37. Qf6 {[%emt 0:01:38]} Rb6 {[%emt 0:00:45]} 38. Qf4 {[%emt 0:00:41]} Rb8 {[%emt 0:02:58]} 39. Qh2 {[%emt 0:02:47]} Kb7 {[%emt 0:02:21]} 40. Ka1 {[%emt 0:01:14]} Ka8 {[%emt 0:00:31]} 41. Bb3 {[%emt 0:31:52]} Rd8 {[%emt 0:02:52]} 42. Qd2 {[%emt 0:00:00]} Rd7 {[%emt 0:02:56]} 43. Bd1 {[%emt 0:00:00]} Rd8 {[%emt 0:02:32]} ({Better is} 43... a6 $14) 44. Bf3 {[%emt 0:00:00]} Rd7 {[%emt 0:02:26]} 45. Qd3 {[%emt 0:00:00]} Kb8 {[%emt 0:01:12]} 46. Bg4 {[%emt 0:00:00]} Bxg4 {[%emt 0:01:53]} 47. Rxg4 {[%emt 0:00:00]} Re7 {[%emt 0:00:40]} 48. Rb4 {[%emt 0:00:00]} a6 $1 {[%emt 0:02:00]} 49. a4 {[%emt 0:00:00]} Rb7 $2 {[%emt 0:03:30] [#]} (49... Rxe5 $11 {and Black is okay.} 50. axb5 a5) 50. e6 $1 $18 {[%emt 0:00:00]} Qg1+ {[%emt 0:08:56]} (50... fxe6 {was called for.} 51. Qxg6 Qe7) 51. Ka2 $18 {[%emt 0:00:00]} Qxg5 {[%emt 0:02:42]} 52. exf7 {[%emt 0:00:00]} ({Worse is} 52. axb5 fxe6 53. b6 (53. bxa6 Rxb4 54. cxb4 d4 $11) 53... d4 $11) 52... Rxf7 {[%emt 0:00:14]} 53. axb5 {[%emt 0:00:00]} Rb7 $2 {[%emt 0:01:14]} (53... a5 54. Ra4 Ra7) 54. b6 {[%emt 0:00:00]} (54. bxa6 $142 Rxb4 55. cxb4) 54... Qf6 {[%emt 0:02:14]} 55. Qxa6 {[%emt 0:00:00]} Qe6 {[%emt 0:00:54]} 56. Rd4 $2 {[%emt 0:08:12]} (56. Qd3 $18 {and White stays clearly on top. Black must now prevent Qd4.} d4+ 57. Ka3) 56... g5 $16 {[%emt 0:01:11]} 57. Qa5 {[%emt 0:01:09]} Rxb6 {[%emt 0:00:48]} 58. Qxd5 {[%emt 0:00:28]} (58. Rxd5 $2 {loses.} Ra6 59. Ka1 Rxa5+ $19) 58... Qxd5+ {[%emt 0:00:33]} 59. Rxd5 {[%emt 0:00:01]} Rg6 {[%emt 0:00:05]} 60. Rd3 {[%emt 0:00:22]} (60. Rd2 $16) 60... g4 $11 {[%emt 0:00:17]} 61. Rg3 {[%emt 0:00:07]} Kc7 {[%emt 0:00:06]} 62. b4 {[%emt 0:00:11]} Kd6 $1 {[%emt 0:02:26]} 63. Kb3 {[%emt 0:00:19]} Kd5 {[%emt 0:00:57]} 64. c4+ {[%emt 0:00:30]} Kd4 $1 {[%emt 0:00:42]} 65. c5 {[%emt 0:00:26]} Kd5 {[%emt 0:00:17]} 66. Kc3 {[%emt 0:00:52]} Rg8 {[%emt 0:00:14]} 67. Kd3 {[%emt 0:01:06]} Rg7 {[%emt 0:00:18]} 68. Kc3 {[%emt 0:02:31]} Rg8 {[%emt 0:00:06]} 69. Kb3 {[%emt 0:00:25]} Rg7 {[%emt 0:00:07]} 70. Rd3+ {[%emt 0:00:28]} Kc6 {[%emt 0:00:49]} 71. Kc4 {[%emt 0:00:52]} g3 {[%emt 0:00:06]} 72. b5+ {[%emt 0:00:04]} Kb7 {[%emt 0:02:24]} 73. Rd1 $1 {[%emt 0:01:25]} g2 {[%emt 0:00:05]} 74. Rg1 {[%emt 0:00:03]} Rg5 {[%emt 0:00:43]} 75. Kd4 {[%emt 0:01:09]} 1/2-1/2

[Event "45th FIDE Olympiad 2024"]
[Site "Budapest"]
[Date "2024.09.19"]
[Round "8.60"]
[White "Henry, Marwa Michael"]
[Black "Lima, Osvaldo Dos Santos"]
[Result "0-1"]
[WhiteElo "1715"]
[BlackElo "1903"]
[PlyCount "120"]
[EventDate "2024.09.05"]
[EventType "team-tourn"]
[EventCountry "HUN"]
[WhiteTeam "Tanzania"]
[BlackTeam "Sao Tome and Principe"]
[WhiteTeamCountry "TAN"]
[BlackTeamCountry "SAO"]
[TimeControl "40/5400+30:1800+30"]

1. e4 g6 2. d4 Bg7 3. Nf3 d6 4. Bd3 Nf6 5. c3 O-O 6. Nbd2 Nc6 7. O-O e5 8. d5 Ne7 9. h3 h6 10. Nh2 g5 11. g4 Ng6 12. Ndf3 a6 13. a4 a5 14. Re1 Nh7 15. Nf1 Nf4 16. Bxf4 gxf4 17. N1h2 Bf6 18. Kh1 Kh8 19. Rg1 Rg8 20. c4 b6 21. Qd2 Bd7 22. Bf1 Qe7 23. Qe2 Rg7 24. Nd2 Rag8 25. f3 Qe8 26. b3 Bh4 27. Nb1 Bg3 28. Qd2 Ng5 29. Kg2 Bxh2 30. Rh1 Bg3 31. h4 Nh7 32. b4 axb4 33. Qxb4 Bxg4 34. fxg4 Rxg4 35. Kf3 Bxh4 36. Nc3 Qd7 37. Ke2 f3+ 38. Kd3 Qe7 39. Kc2 Qg5 40. Qb1 Nf6 41. Kb3 Nd7 42. Kb4 Nc5 43. Ra2 Bg3 44. Bh3 Rf4 45. Bf5 h5 46. Qd1 h4 47. Rh3 Kg7 48. a5 bxa5+ 49. Rxa5 f2 50. Rh1 Rxf5 51. exf5 Qxf5 52. Ra7 Rb8+ 53. Nb5 Nd3+ 54. Ka5 e4 55. Rxc7 Rh8 56. Rc6 Qg6 57. Nxd6 Bxd6 58. c5 Ra8+ 59. Kb6 Bxc5+ 60. Kb5 Rb8+ {0-} 0-1

[Event "45th FIDE Olympiad 2024"]
[Site "Budapest"]
[Date "2024.09.19"]
[Round "8.61"]
[White "Cheparinov, Ivan"]
[Black "Supi, Luis Paulo"]
[Result "1/2-1/2"]
[ECO "D30"]
[WhiteElo "2628"]
[BlackElo "2570"]
[Annotator "TA"]
[PlyCount "98"]
[EventDate "2024.09.05"]
[EventType "team-tourn"]
[EventCountry "HUN"]
[SourceTitle "playchess.com"]
[Source "ChessBase"]
[SourceQuality "1"]
[WhiteTeam "Bulgaria"]
[BlackTeam "Brazil"]
[WhiteTeamCountry "BUL"]
[BlackTeamCountry "BRA"]
[TimeControl "40/5400+30:1800+30"]

{[%evp 24,98,50,43,49,44,31,24,22,24,10,20,17,-67,-62,-89,-97,-107,-91,-85,-88,-93,-111,-97,-38,-47,-34,-47,-34,-42,-47,-56,-58,-41,-51,-52,-41,-39,-49,-62,-8,-22,-20,-25,-16,-16,-16,-57,-54,-78,-78,-80,-67,-57,-37,-49,-35,-41,-8,-8,0,0,0,-8,-8,-8,-8,-8,-8,-8,-8,-8,0,0,0,-8,0]} 1. d4 {[%emt 0:00:03] Yuffa,Daniil} d5 {[%emt 0:03:04]} 2. c4 {[%emt 0:00:34]} e6 {[%emt 0:00:04]} 3. Nf3 {[%emt 0:00:05]} a6 {[%emt 0:00:08]} 4. g3 {[%emt 0:00:19]} dxc4 {[%emt 0:00:38]} 5. Bg2 {[%emt 0:00:07]} Nc6 {[%emt 0:00:56]} 6. O-O {[%emt 0:00:09] D30: Queen's Gambit Declined: Systems without Nc3.} Rb8 {[%emt 0:00:24]} 7. a4 {[%emt 0:00:15]} Bb4 $146 {[%emt 0:01:14]} ({Predecessor:} 7... Nf6 8. a5 b5 9. axb6 cxb6 10. Bf4 Bd6 11. Ne5 Ne7 12. Bc6+ Kf8 13. Bg2 b5 14. b3 cxb3 15. Qxb3 h6 16. Nc3 {1-0 Yuffa,D (2601)-Koelle,T (2439) Bundesliga 2223 2022 (2.3)}) 8. Qc2 {[%emt 0:05:47]} b5 {[%emt 0:01:09]} 9. axb5 {[%emt 0:03:25]} axb5 {[%emt 0:01:32]} 10. b3 {[%emt 0:02:33]} Nf6 {[%emt 0:02:56]} 11. Rd1 {[%emt 0:04:37]} O-O {[%emt 0:03:26]} 12. bxc4 {[%emt 0:01:25]} bxc4 {[%emt 0:00:21]} 13. Qxc4 {[%emt 0:05:10]} Na5 {[%emt 0:11:25]} 14. Qc2 {[%emt 0:04:29]} Bb7 {[%emt 0:02:18]} 15. Bf4 {[%emt 0:03:54]} Qd5 {[%emt 0:43:21]} (15... Be4 {simplifies} 16. Qxc7 Rc8 17. Qxd8 Rfxd8 18. Nbd2 Bg6) 16. Qxc7 {[%emt 0:15:40]} Nc4 $1 {[%emt 0:06:09]} 17. Ra7 {[%emt 0:10:39]} (17. Qxb8 Rxb8 18. Bxb8 Qe4 $17) 17... Qb5 $1 {[%emt 0:04:11]} 18. Rc1 {[%emt 0:05:21]} ({Much weaker is} 18. Qxb8 Rxb8 19. Bxb8 Na5 (19... Bxf3 20. Bxf3 Nd5 21. Be5 $16) 20. Rxb7 Qxb7 $17 (20... Nxb7 21. Rc1 $17)) (18. Ne5 $11 Nxe5 19. Qxe5 (19. Rxb7 Qxe2 20. Rf1 Ned7 $11)) 18... Bd5 $1 $15 {[%emt 0:04:40]} (18... Rfc8 19. Rxb7 Qxb7 20. Qxb7 Rxb7 21. Nfd2 Bxd2 22. Bxb7 Bxc1 23. Bxc8 Bxf4 24. gxf4) 19. Nc3 {[%emt 0:13:31]} Bxc3 {[%emt 0:01:09]} 20. Rxc3 {[%emt 0:00:03]} Rbc8 {[%emt 0:01:36]} 21. Qe7 {[%emt 0:00:04]} Qb2 {[%emt 0:02:39]} 22. Rc1 {[%emt 0:01:40]} Qxe2 {[%emt 0:00:54]} 23. Re1 {[%emt 0:00:28]} Qb2 {[%emt 0:02:03]} ({Black should try} 23... Qc2 $17 {Threatens to win with ...Ne4.} 24. Rc1 Qe2) 24. Ng5 $15 {[%emt 0:07:07]} Rce8 $1 {[%emt 0:01:58]} 25. Qc7 $1 {[%emt 0:01:00]} Qb4 $1 {[%emt 0:04:06]} 26. Rea1 {[%emt 0:03:29]} Rc8 {[%emt 0:00:28]} 27. Qe7 {[%emt 0:00:28]} Qxe7 {[%emt 0:00:18]} 28. Rxe7 {[%emt 0:00:01]} Bxg2 {[%emt 0:00:11]} 29. Kxg2 {[%emt 0:00:03]} h6 {[%emt 0:00:35]} 30. Nf3 {[%emt 0:00:17]} Nd5 {[%emt 0:00:04]} 31. Rb7 {[%emt 0:00:41]} g5 {[%emt 0:01:18]} ({Black should play} 31... Nxf4+ $1 $15 32. gxf4 Nd6) 32. Bc1 {[%emt 0:01:17]} Ra8 {[%emt 0:00:07]} 33. Rba7 {[%emt 0:08:21]} Rxa7 {[%emt 0:00:18]} 34. Rxa7 {[%emt 0:00:01]} Rc8 {[%emt 0:00:19]} 35. Ba3 {[%emt 0:01:01]} g4 {[%emt 0:00:44]} 36. Ne5 {[%emt 0:03:11] [#]} Nxe5 $1 {[%emt 0:00:23]} 37. dxe5 {[%emt 0:00:01]} Rc2 {[%emt 0:00:32]} 38. Kf1 {[%emt 0:00:49]} Kg7 {[%emt 0:00:43]} 39. Rb7 {[%emt 0:01:05]} Kg6 {[%emt 0:00:23]} 40. Rb8 {[%emt 0:00:36]} Kf5 {[%emt 0:01:11]} 41. Rf8 {[%emt 0:02:30]} Rc7 {[%emt 0:05:16]} 42. Bd6 {[%emt 0:00:45]} Rb7 {[%emt 0:00:18]} 43. Kg2 {[%emt 0:00:18]} Ke4 {[%emt 0:04:45]} 44. h3 {[%emt 0:04:46]} gxh3+ {[%emt 0:02:37]} 45. Kxh3 {[%emt 0:01:06]} Kf3 {[%emt 0:00:16]} 46. Bc5 {[%emt 0:03:38]} Rc7 {[%emt 0:00:51]} 47. Bd6 {[%emt 0:00:09]} Rb7 {[%emt 0:00:06]} 48. Bc5 {[%emt 0:00:02]} Rc7 {[%emt 0:04:41]} 49. Bd6 {[%emt 0:00:06]} Rb7 {[%emt 0:03:26]} 1/2-1/2

[Event "45th FIDE Olympiad 2024"]
[Site "Budapest"]
[Date "2024.09.19"]
[Round "8.61"]
[White "Thabang, Mphane"]
[Black "Morazo, John Ranel"]
[Result "0-1"]
[WhiteElo "1799"]
[BlackElo "2200"]
[PlyCount "62"]
[EventDate "2024.09.05"]
[EventType "team-tourn"]
[EventCountry "HUN"]
[WhiteTeam "Lesotho"]
[BlackTeam "Palau"]
[WhiteTeamCountry "LES"]
[BlackTeamCountry "PAL"]
[TimeControl "40/5400+30:1800+30"]

1. Nf3 Nf6 2. c4 c5 3. Nc3 Nc6 4. g3 g6 5. Bg2 Bg7 6. O-O O-O 7. e4 d6 8. a3 a6 9. h3 Rb8 10. d4 cxd4 11. Nxd4 Nxd4 12. Qxd4 Be6 13. c5 Nd7 14. Qe3 Nxc5 15. Rb1 Bc4 16. Rd1 Bb3 17. Rd2 b5 18. Ne2 Qb6 19. Nd4 Bxd4 20. Qxd4 Ba2 21. Ra1 Nb3 22. Qxb6 Rxb6 23. Rd1 Nxa1 24. Be3 Rc6 25. Rxa1 Bb3 26. Bd4 Rfc8 27. f4 Rc1+ 28. Rxc1 Rxc1+ 29. Kf2 Rc2+ 30. Kf3 Rd2 31. Bc3 Bd1+ {0-} 0-1